fUST/lending_fUST_20250612
["ID","MTS","AMOUNT","RATE_DAILY","PERIOD"]
[365448004,1749678642655,-571.58,0.00021924,4]
[365448006,1749678642666,-165.0,0.00022,2]
[365448008,1749678642676,-1893.84393246,0.00022003,6]
[365448011,1749678642685,-37205.69301891,0.0002206,2]
[365448013,1749678642695,-525.66659962,0.00022094,2]
[365448015,1749678642704,-3059.08,0.000221,7]
[365448017,1749678642714,-942.6455447,0.00022102,2]
[365448019,1749678642723,-1893.84393246,0.00022107,6]
[365448021,1749678642732,-523.43,0.00022189,2]
[365448023,1749678642741,-462.12,0.00022191,4]
[365448026,1749678642750,-460.0,0.00022191,4]
[365448028,1749678642760,-460.0,0.00022191,4]
[365448030,1749678642769,-492.56,0.00022191,4]
[365448032,1749678642778,-460.0,0.00022191,4]
[365448034,1749678642787,-625.15,0.00022191,4]
[365448036,1749678642797,-429.46838517,0.00022191,4]
[365448038,1749678642806,-1036.05,0.00022191,4]
[365448040,1749678642815,-512.89,0.00022191,4]
[365448042,1749678642825,-603.44,0.00022191,4]
[365448045,1749678642834,-1020.57,0.00022198,4]
[365448047,1749678642843,-460.0,0.00022198,4]
[365448049,1749678642852,-571.58,0.00022198,4]
[365448051,1749678642862,-741.6,0.00022199,4]
[365448053,1749678642871,-165.45494644,0.000222,69]
[365448055,1749678642880,-165.45494643,0.000222,69]
[365448057,1749678642890,-1893.84393246,0.0002221,6]
[365448059,1749678642901,-1000.0,0.00022269,2]
[365448061,1749678642920,-5000.0,0.00022284,2]
[365448063,1749678642929,-741.6,0.00022299,5]
[365448065,1749678642938,-1893.84393246,0.00022314,7]
[365448067,1749678642947,-1000.0,0.00022321,2]
[365448069,1749678642956,-168.0,0.00022356,2]
[365448071,1749678642967,-500.0,0.00022387,3]
[365448073,1749678642976,-741.6,0.00022399,2]
[365448075,1749678642985,-160.0,0.000224,3]
[365448077,1749678642994,-165.45494643,0.00022403,70]
[365448079,1749678643003,-1893.84393246,0.00022417,7]
[365448081,1749678643012,-2105.0,0.0002243,4]
[365448083,1749678643022,-23831.20796674,0.0002244,2]
[365448085,1749678643031,-523.43,0.00022463,2]
[365448087,1749678643040,-462.12,0.00022465,4]
[365448089,1749678643050,-460.0,0.00022465,4]
[365448091,1749678643059,-272.15563846,0.00022465,4]
[365448093,1749678643069,-492.56,0.00022465,4]
[365448095,1749678643079,-460.0,0.00022465,4]
[365448097,1749678643088,-625.15,0.00022465,4]
[365448098,1749678643097,-500.0,0.00022465,2]
[365448099,1749678643107,-1036.05,0.00022465,4]
[365448100,1749678643116,-512.89,0.00022465,4]
[365448101,1749678643125,-603.44,0.00022465,4]
[365448102,1749678643135,-1020.57,0.00022472,4]
[365448103,1749678643144,-460.0,0.00022472,4]
[365448104,1749678643153,-571.58,0.00022472,4]
[365448105,1749678643163,-625.45980727,0.0002249,2]
[365448106,1749678643172,-300.0,0.0002249,3]
[365448107,1749678643182,-741.6,0.00022499,2]
[365448108,1749678643193,-1893.84393246,0.00022521,7]
[365448109,1749678643203,-35277.61906129,0.0002254,2]
[365448111,1749678643213,-600.0,0.0002256,2]
[365448113,1749678643222,-942.6455447,0.00022568,2]
[365448114,1749678643232,-178.3,0.00022574,6]
[365448115,1749678643241,-741.6,0.00022599,2]
[365448116,1749678643250,-160.0,0.000226,7]
[365448117,1749678643259,-1893.84393246,0.00022624,7]
[365448119,1749678643268,-213.16534259,0.0002263,7]
[365448121,1749678643277,-525.66659962,0.00022643,2]
[365448122,1749678643286,-1000.0,0.00022684,2]
[365448123,1749678643295,-1000.0,0.00022684,2]
[365448124,1749678643304,-1000.0,0.00022684,2]
[365448126,1749678643313,-1000.0,0.00022684,2]
[365448128,1749678643322,-300.70323486,0.00022684,2]
[365448130,1749678643332,-741.6,0.00022699,6]
[365448132,1749678643342,-163.75,0.000227,2]
[365448135,1749678643351,-163.75,0.000227,2]
[365448138,1749678643360,-163.75,0.000227,2]
[365448140,1749678643369,-163.7613617,0.000227,2]
[365448143,1749678643378,-178.3,0.00022703,6]
[365448145,1749678643390,-1893.84393246,0.00022728,7]
[365448148,1749678643399,-523.43,0.00022737,2]
[365448151,1749678643408,-462.12,0.00022739,4]
[365448153,1749678643417,-460.0,0.00022739,4]
[365448155,1749678643426,-492.56,0.00022739,4]
[365448159,1749678643436,-460.0,0.00022739,4]
[365448162,1749678643444,-625.15,0.00022739,4]
[365448164,1749678643458,-1036.05,0.00022739,4]
[365448166,1749678643469,-512.89,0.00022739,4]
[365448168,1749678643480,-603.44,0.00022739,4]
[365448170,1749678643489,-1020.57,0.00022746,4]
[365448171,1749678643499,-460.0,0.00022746,4]
[365448174,1749678643508,-571.58,0.00022746,4]
[365448177,1749678643517,-600.0,0.00022795,2]
[365448179,1749678643526,-741.6,0.00022799,7]
[365448181,1749678643535,-1893.84393246,0.00022831,8]
[365448183,1749678643544,-5000.0,0.00022832,2]
[365448185,1749678643552,-178.3,0.00022833,6]
[365448187,1749678643561,-883.16629982,0.00022897,2]
[365448189,1749678643570,-741.6,0.00022899,2]
[365448191,1749678643580,-206.0,0.000229,2]
[365448193,1749678643589,-3000.0,0.000229,2]
[365448195,1749678643598,-935.51,0.000229,7]
[365448197,1749678643608,-3000.0,0.0002291,2]
[365448200,1749678643618,-168.0,0.00022911,2]
[365448202,1749678643627,-3000.0,0.0002292,2]
[365448204,1749678643637,-3000.0,0.0002293,2]
[365448206,1749678643646,-1893.84393246,0.00022934,8]
[365448208,1749678643656,-3000.0,0.0002294,2]
[365448210,1749678643665,-3000.0,0.0002295,2]
[365448212,1749678643678,-5000.0,0.00022955,2]
[365448214,1749678643691,-3000.0,0.0002296,2]
[365448217,1749678643703,-178.3,0.00022963,6]
[365448219,1749678643718,-3000.0,0.0002297,2]
[365448222,1749678643731,-3000.0,0.0002298,2]
[365448224,1749678643742,-3000.0,0.0002299,2]
[365448226,1749678643752,-741.6,0.00022999,2]
[365448228,1749678643764,-1129.56059276,0.00023,2]
[365448230,1749678643776,-3000.0,0.00023,2]
[365448233,1749678643789,-32425.47447108,0.00023,2]
[365448235,1749678643800,-166.0,0.00023,7]
[365448237,1749678643812,-56561.0,0.00023,2]
[365448240,1749678643824,-200.0,0.00023,2]
[365448242,1749678643835,-3000.0,0.0002301,2]
[365448244,1749678643847,-523.43,0.00023011,2]
[365448246,1749678643859,-462.12,0.00023013,4]
[365448249,1749678643871,-460.0,0.00023013,4]
[365448251,1749678643883,-492.56,0.00023013,4]
[365448253,1749678643894,-181.77691034,0.00023013,4]
[365448256,1749678643905,-625.15,0.00023013,4]
[365448258,1749678643916,-500.0,0.00023013,2]
[365448260,1749678643927,-1036.05,0.00023013,4]
[365448262,1749678643938,-512.89,0.00023013,4]
[365448265,1749678643951,-603.44,0.00023013,4]
[365448267,1749678643963,-3000.0,0.0002302,2]
[365448269,1749678643974,-1020.57,0.0002302,4]
[365448272,1749678643986,-460.0,0.0002302,4]
[365448274,1749678643996,-571.58,0.0002302,4]
[365448276,1749678644005,-3000.0,0.0002303,2]
[365448278,1749678644016,-600.0,0.0002303,2]
[365448280,1749678644028,-942.6455447,0.00023034,2]
[365448283,1749678644039,-1893.84393246,0.00023038,8]
[365448285,1749678644051,-3000.0,0.0002304,2]
[365448287,1749678644063,-1279.8,0.00023046,2]
[365448289,1749678644075,-3000.0,0.0002305,2]
[365448292,1749678644085,-3000.0,0.0002306,2]
[365448294,1749678644097,-3000.0,0.0002307,2]
[365448296,1749678644109,-500.0,0.00023073,2]
[365448299,1749678644121,-3000.0,0.0002308,2]
[365448301,1749678644133,-1283.36,0.00023083,3]
[365448303,1749678644145,-641.68,0.00023085,3]
[365448305,1749678644154,-320.84,0.00023085,3]
[365448307,1749678644164,-3000.0,0.0002309,2]
[365448310,1749678644174,-178.3,0.00023092,6]
[365448312,1749678644183,-741.6,0.00023099,6]
[365448314,1749678644193,-3000.0,0.000231,2]
[365448316,1749678644205,-179474.24,0.000231,7]
[365448318,1749678644218,-3059.08,0.000231,7]
[365448321,1749678644229,-160.0,0.000231,7]
[365448323,1749678644240,-215.0738,0.00023105,2]
[365448325,1749678644250,-3000.0,0.0002311,2]
[365448327,1749678644260,-3000.0,0.0002312,2]
[365448329,1749678644271,-3000.0,0.0002313,2]
[365448331,1749678644281,-3000.0,0.0002314,2]
[365448334,1749678644292,-1893.84393246,0.00023141,8]
[365448336,1749678644304,-3000.0,0.0002315,2]
[365448338,1749678644314,-3000.0,0.0002316,2]
[365448340,1749678644323,-111.30569623,0.0002317,2]
[365448358,1749678644491,-195.12351,0.00021369,2]
[365448361,1749678644501,-221.53139336,0.00021642,2]
[365448527,1749678646147,-460.0,0.00021095,4]
[365448529,1749678646156,-460.0,0.00021095,4]
[365448531,1749678646166,-460.0,0.00021369,4]
[365448533,1749678646175,-89.32045758,0.00021642,2]
[365448535,1749678646184,-460.0,0.00021643,4]
[365448537,1749678646193,-460.0,0.00021917,4]
[365448554,1749678646340,-2888.69430377,0.0002317,2]
[365448556,1749678646354,-206.0,0.0002318,2]
[365448558,1749678646363,-3000.0,0.0002318,2]
[365448560,1749678646372,-1494.561654,0.0002318,5]
[365448562,1749678646385,-3000.0,0.0002319,2]
[365448565,1749678646395,-525.66659962,0.00023192,2]
[365448567,1749678646404,-741.6,0.00023199,2]
[365448569,1749678646413,-3000.0,0.000232,2]
[365448571,1749678646423,-1000.0,0.000232,5]
[365448572,1749678646433,-160.0,0.00023209,2]
[365448574,1749678646441,-3000.0,0.0002321,2]
[365448576,1749678646451,-308.14898503,0.0002322,2]
[365451508,1749678937581,227.339971,0.00013699,2]
[365451538,1749679756106,150160.21017337,0.00024943,120]
[365451595,1749679832554,-319.86324777,0.00019712,2]
[365451598,1749679832564,-227.339971,0.00020187,2]
[365451600,1749679832574,-514.8910362,0.00020546,2]
[365451602,1749679832584,-300.0,0.00021094,2]
[365451604,1749679832593,-300.0,0.00021094,2]
[365451606,1749679832603,-460.0,0.00021095,4]
[365451608,1749679832612,-276.21259303,0.00021095,2]
[365451610,1749679832624,-261.86740697,0.00021095,2]
[365451612,1749679832634,-226.99738833,0.00021095,4]
[365451621,1749679832715,-227.00261167,0.00021095,4]
[365451623,1749679832726,-127.93140005,0.00021095,4]
[365451685,1749679838486,-332.06859995,0.00021095,4]
[365451687,1749679838497,-856.55,0.00021095,4]
[365451689,1749679838508,-460.0,0.00021095,4]
[365451691,1749679838520,-440.0,0.00021095,4]
[365451693,1749679838530,-260.48411615,0.00021095,4]
[365451695,1749679838541,-1000.0,0.00021095,4]
[365451697,1749679838553,-440.0,0.00021095,4]
[365451699,1749679838563,-440.0,0.00021095,4]
[365451701,1749679838575,-440.0,0.00021095,4]
[365451703,1749679838586,-589.43592663,0.00021095,4]
[365451705,1749679838597,-291.704,0.00021095,2]
[365451707,1749679838608,-349.68371732,0.00021095,4]
[365451709,1749679838620,-592.36,0.00021095,4]
[365451711,1749679838631,-460.0,0.00021095,4]
[365451713,1749679838642,-165.01531053,0.00021095,4]
[365451715,1749679838655,-460.0,0.00021095,4]
[365451717,1749679838665,-460.0,0.00021095,4]
[365451719,1749679838675,-264.65019379,0.00021095,4]
[365451721,1749679838687,-511.59980621,0.00021095,4]
[365451723,1749679838696,-460.0,0.00021095,4]
[365451725,1749679838706,-460.0,0.00021095,4]
[365451727,1749679838717,-761.84,0.00021095,4]
[365451729,1749679838728,-460.0,0.00021095,4]
[365451732,1749679838740,-663.73,0.00021095,4]
[365451734,1749679838751,-460.0,0.00021095,4]
[365451736,1749679838763,-1269.23,0.00021095,4]
[365451738,1749679838773,-759.63,0.00021095,4]
[365451740,1749679838783,-460.0,0.00021095,4]
[365451742,1749679838794,-472.89,0.00021095,4]
[365451744,1749679838804,-15793.65772643,0.00021095,2]
[365451746,1749679838816,-818.95631391,0.00021236,2]
[365451748,1749679838827,-500.0,0.00021335,2]
[365451750,1749679838839,-500.0,0.00021335,2]
[365451752,1749679838849,-626.4562574,0.00021335,2]
[365451754,1749679838859,-500.0,0.00021335,2]
[365451756,1749679838870,-500.0,0.00021335,2]
[365451758,1749679838884,-500.0,0.00021335,2]
[365451760,1749679838895,-500.30611466,0.00021335,2]
[365451762,1749679838906,-500.0,0.00021335,2]
[365451764,1749679838917,-500.0,0.00021335,2]
[365451766,1749679838927,-500.0,0.00021335,2]
[365451768,1749679838937,-500.0,0.00021335,2]
[365451770,1749679838947,-231.21646471,0.00021335,2]
[365451772,1749679838958,-500.0,0.00021335,2]
[365451774,1749679838969,-234.53658319,0.00021335,2]
[365451776,1749679838979,-500.0,0.00021335,2]
[365451778,1749679838990,-500.0,0.00021335,2]
[365451780,1749679839000,-500.0,0.00021335,2]
[365451782,1749679839010,-500.0,0.00021335,2]
[365451783,1749679839021,-500.0,0.00021335,2]
[365451785,1749679839032,-500.0,0.00021335,2]
[365451787,1749679839042,-500.0,0.00021335,2]
[365451789,1749679839052,-500.0,0.00021335,2]
[365451791,1749679839062,-500.0,0.00021335,2]
[365451793,1749679839072,-500.0,0.00021335,2]
[365451795,1749679839082,-500.0,0.00021335,2]
[365451797,1749679839092,-500.0,0.00021335,2]
[365451798,1749679839102,-500.0,0.00021335,2]
[365451799,1749679839112,-500.0,0.00021335,2]
[365451800,1749679839123,-500.0,0.00021335,2]
[365451801,1749679839133,-500.0,0.00021335,2]
[365451802,1749679839143,-500.0,0.00021335,2]
[365451803,1749679839153,-500.0,0.00021335,2]
[365451804,1749679839164,-500.0,0.00021335,2]
[365451805,1749679839174,-500.0,0.00021335,2]
[365451806,1749679839184,-500.0,0.00021335,2]
[365451807,1749679839194,-500.0,0.00021335,2]
[365451808,1749679839204,-500.0,0.00021335,2]
[365451809,1749679839214,-500.0,0.00021335,2]
[365451810,1749679839224,-500.0,0.00021335,2]
[365451811,1749679839234,-500.0,0.00021335,2]
[365451812,1749679839244,-500.0,0.00021335,2]
[365451813,1749679839255,-500.0,0.00021335,2]
[365451814,1749679839265,-500.0,0.00021335,2]
[365451815,1749679839275,-1003.98943177,0.00021336,2]
[365451816,1749679839285,-5000.0,0.00021336,2]
[365451817,1749679839295,-10295.54148467,0.00021336,2]
[365451818,1749679839305,-559.90799129,0.00021336,2]
[365451819,1749679839315,-207.4,0.00021336,2]
[365451820,1749679839325,-744.0,0.00021348,2]
[365451821,1749679839336,-460.0,0.00021349,4]
[365451822,1749679839346,-644.21,0.00021349,4]
[365451823,1749679839356,-460.0,0.00021349,4]
[365451824,1749679839367,-460.0,0.00021349,4]
[365451825,1749679839378,-187.4569787,0.00021349,4]
[365451826,1749679839388,-460.0,0.00021349,4]
[365451827,1749679839398,-460.0,0.00021349,4]
[365451828,1749679839410,-460.0,0.00021349,4]
[365451829,1749679839420,-693.48,0.0002135,2]
[365451840,1749679839567,-538.08,0.00021369,2]
[365451842,1749679839577,-460.0,0.00021369,4]
[365451844,1749679839586,-856.55,0.00021369,4]
[365451846,1749679839595,-460.0,0.00021369,4]
[365451848,1749679839605,-1000.0,0.00021369,4]
[365451850,1749679839614,-460.0,0.00021369,4]
[365451852,1749679839623,-460.0,0.00021369,4]
[365451854,1749679839633,-460.0,0.00021369,4]
[365451856,1749679839642,-776.25,0.00021369,4]
[365451858,1749679839651,-460.0,0.00021369,4]
[365451860,1749679839662,-460.0,0.00021369,4]
[365451862,1749679839671,-761.84,0.00021369,4]
[365451863,1749679839680,-663.73,0.00021369,4]
[365451865,1749679839689,-1269.23,0.00021369,4]
[365451867,1749679839698,-759.63,0.00021369,4]
[365451869,1749679839707,-460.0,0.00021369,4]
[365451871,1749679839716,-472.89,0.00021369,4]
[365451873,1749679839726,-744.0,0.00021375,2]
[365451875,1749679839735,-744.0,0.00021403,2]
[365451877,1749679839744,-744.0,0.0002143,2]
[365451879,1749679839753,-744.0,0.00021458,2]
[365451881,1749679839762,-744.0,0.00021485,2]
[365451883,1749679839771,-744.0,0.00021512,2]
[365451886,1749679839780,-744.0,0.0002154,2]
[365451888,1749679839789,-160.0,0.0002155,2]
[365451890,1749679839798,-213.16534259,0.0002155,2]
[365451892,1749679839807,-160.0,0.0002155,2]
[365451894,1749679839817,-835.03886221,0.0002155,2]
[365451896,1749679839826,-424.19973472,0.0002155,2]
[365451898,1749679839835,-160.0,0.0002155,2]
[365451900,1749679839845,-229.71724145,0.0002155,2]
[365451902,1749679839854,-160.0,0.0002155,2]
[365451904,1749679839864,-844.64040732,0.0002155,2]
[365451906,1749679839873,-160.0,0.0002155,2]
[365451908,1749679839886,-744.0,0.00021567,2]
[365451910,1749679839895,-744.0,0.00021595,2]
[365451912,1749679839905,-744.0,0.00021622,2]
[365451914,1749679839914,-460.0,0.00021623,4]
[365451916,1749679839923,-644.21,0.00021623,4]
[365451917,1749679839931,-460.0,0.00021623,4]
[365451919,1749679839941,-460.0,0.00021623,4]
[365451921,1749679839950,-460.0,0.00021623,4]
[365451923,1749679839960,-307.4,0.00021623,4]
[365451925,1749679839969,-538.08,0.00021643,2]
[365451928,1749679839979,-856.55,0.00021643,4]
[365451930,1749679839988,-460.0,0.00021643,4]
[365451932,1749679839998,-1000.0,0.00021643,4]
[365451934,1749679840008,-460.0,0.00021643,4]
[365451936,1749679840018,-460.0,0.00021643,4]
[365451938,1749679840027,-460.0,0.00021643,4]
[365451941,1749679840037,-776.25,0.00021643,4]
[365451944,1749679840046,-460.0,0.00021643,4]
[365451948,1749679840055,-606.71431266,0.00021643,4]
[365451950,1749679840065,-761.84,0.00021643,4]
[365451952,1749679840074,-663.73,0.00021643,4]
[365451954,1749679840083,-1269.23,0.00021643,4]
[365451956,1749679840093,-759.63,0.00021643,4]
[365451958,1749679840103,-460.0,0.00021643,4]
[365451960,1749679840113,-472.89,0.00021643,4]
[365451962,1749679840122,-744.0,0.00021649,2]
[365451964,1749679840131,-316.000001,0.0002165,2]
[365451966,1749679840140,-744.0,0.00021677,2]
[365451968,1749679840149,-1000.0,0.0002169,2]
[365451970,1749679840160,-988.7,0.000217,2]
[365451972,1749679840169,-744.0,0.00021704,2]
[365451974,1749679840178,-744.0,0.00021732,2]
[365451976,1749679840188,-744.0,0.00021759,2]
[365451978,1749679840197,-168.0,0.00021766,2]
[365451980,1749679840206,-500.0,0.0002177,2]
[365451982,1749679840215,-1000.0,0.0002178,2]
[365451984,1749679840224,-744.0,0.00021786,2]
[365451986,1749679840234,-159.187815,0.00021792,2]
[365451988,1749679840243,-744.0,0.00021814,2]
[365451990,1749679840252,-168.0,0.00021832,2]
[365451992,1749679840262,-963.0,0.00021839,2]
[365451994,1749679840271,-653.0,0.00021839,2]
[365451996,1749679840280,-2160.0,0.00021839,2]
[365451998,1749679840289,-405.0,0.00021839,2]
[365452000,1749679840298,-405.0,0.00021839,2]
[365452002,1749679840307,-744.0,0.00021841,2]
[365452004,1749679840316,-168.0,0.00021857,2]
[365452006,1749679840325,-744.0,0.00021869,2]
[365452008,1749679840334,-1000.0,0.0002188,2]
[365452010,1749679840343,-5000.0,0.00021884,2]
[365452012,1749679840353,-744.0,0.00021896,2]
[365452014,1749679840362,-460.0,0.00021897,4]
[365452016,1749679840371,-644.21,0.00021897,4]
[365452018,1749679840380,-460.0,0.00021897,4]
[365452020,1749679840390,-225.81,0.00021897,4]
[365452022,1749679840399,-460.0,0.00021897,4]
[365452024,1749679840410,-2806.38990401,0.000219,6]
[365452026,1749679840419,-500.0,0.00021914,2]
[365452028,1749679840428,-538.08,0.00021917,2]
[365452030,1749679840438,-856.55,0.00021917,4]
[365452032,1749679840447,-1000.0,0.00021917,4]
[365452034,1749679840456,-460.0,0.00021917,4]
[365452036,1749679840465,-460.0,0.00021917,4]
[365452038,1749679840475,-460.0,0.00021917,4]
[365452040,1749679840485,-776.25,0.00021917,4]
[365452042,1749679840495,-460.0,0.00021917,4]
[365452044,1749679840504,-761.84,0.00021917,4]
[365452046,1749679840513,-663.73,0.00021917,4]
[365452048,1749679840522,-1269.23,0.00021917,4]
[365452050,1749679840532,-759.63,0.00021917,4]
[365452052,1749679840541,-460.0,0.00021917,4]
[365452054,1749679840552,-472.89,0.00021917,4]
[365452056,1749679840561,-744.0,0.00021923,2]
[365452058,1749679840570,-1156.88664281,0.0002195,2]
[365452060,1749679840579,-744.0,0.00021951,2]
[365452062,1749679840589,-751.05669963,0.00021978,2]
[365452064,1749679840598,-1000.000001,0.0002198,2]
[365452066,1749679840607,-1000.59620625,0.00022,2]
[365452068,1749679840617,-166.0,0.00022,2]
[365452070,1749679840627,-165.0,0.00022,2]
[365452072,1749679840636,-2806.38990393,0.00022003,6]
[365452074,1749679840646,-500.0,0.0002205,2]
[365452076,1749679840657,-500.0,0.0002205,2]
[365452078,1749679840667,-160.0,0.0002205,2]
[365452080,1749679840676,-168.0,0.00022104,2]
[365452082,1749679840685,-2806.38990393,0.00022107,6]
[365452084,1749679840695,-160.0,0.00022169,3]
[365452086,1749679840705,-460.0,0.00022171,4]
[365452088,1749679840714,-644.21,0.00022171,4]
[365452090,1749679840723,-460.0,0.00022171,4]
[365452092,1749679840733,-460.0,0.00022171,4]
[365452094,1749679840742,-538.08,0.00022191,2]
[365452096,1749679840751,-856.55,0.00022191,4]
[365452098,1749679840761,-1000.0,0.00022191,4]
[365452100,1749679840770,-460.0,0.00022191,4]
[365452102,1749679840780,-460.0,0.00022191,4]
[365452104,1749679840792,-460.0,0.00022191,4]
[365452106,1749679840802,-776.25,0.00022191,4]
[365452108,1749679840812,-460.0,0.00022191,4]
[365452110,1749679840822,-761.84,0.00022191,4]
[365452112,1749679840832,-663.73,0.00022191,4]
[365452114,1749679840841,-1269.23,0.00022191,4]
[365452116,1749679840851,-759.63,0.00022191,4]
[365452118,1749679840860,-460.0,0.00022191,4]
[365452120,1749679840870,-472.89,0.00022191,4]
[365452122,1749679840881,-2806.38990393,0.0002221,6]
[365452124,1749679840890,-639.0,0.000223,2]
[365452126,1749679840899,-2806.38990393,0.00022314,7]
[365452127,1749679840910,-500.0,0.00022318,2]
[365452129,1749679840919,-1156.88664278,0.00022388,2]
[365452132,1749679840930,-158.77989778,0.00022411,2]
[365452134,1749679840940,-2806.38990393,0.00022417,7]
[365452136,1749679840949,-2105.0,0.0002243,4]
[365452138,1749679840962,-500.0,0.00022431,2]
[365452140,1749679840971,-500.0,0.00022431,2]
[365452142,1749679840980,-500.0,0.00022431,2]
[365452143,1749679840989,-500.0,0.00022431,2]
[365452146,1749679840999,-500.0,0.00022431,2]
[365452148,1749679841008,-500.0,0.00022431,2]
[365452149,1749679841018,-500.0,0.00022431,2]
[365452151,1749679841027,-500.0,0.00022431,2]
[365452153,1749679841037,-500.0,0.00022431,2]
[365452155,1749679841047,-500.0,0.00022431,2]
[365452157,1749679841057,-386.00908116,0.00022431,2]
[365452160,1749679841067,-500.0,0.00022431,2]
[365452162,1749679841076,-500.0,0.00022431,2]
[365452164,1749679841086,-5000.0,0.00022432,2]
[365452166,1749679841095,-460.0,0.00022445,4]
[365452168,1749679841104,-644.21,0.00022445,4]
[365452169,1749679841113,-460.0,0.00022445,4]
[365452171,1749679841123,-460.0,0.00022445,4]
[365452174,1749679841132,-500.0,0.00022462,2]
[365452175,1749679841141,-538.08,0.00022465,2]
[365452177,1749679841151,-856.55,0.00022465,4]
[365452179,1749679841162,-1000.0,0.00022465,4]
[365452181,1749679841172,-460.0,0.00022465,4]
[365452184,1749679841181,-460.0,0.00022465,4]
[365452185,1749679841191,-460.0,0.00022465,4]
[365452188,1749679841200,-776.25,0.00022465,4]
[365452190,1749679841210,-460.0,0.00022465,4]
[365452191,1749679841219,-761.84,0.00022465,4]
[365452193,1749679841229,-663.73,0.00022465,4]
[365452195,1749679841238,-1269.23,0.00022465,4]
[365452197,1749679841247,-759.63,0.00022465,4]
[365452199,1749679841258,-561.67593049,0.00022465,4]
[365452201,1749679841267,-472.89,0.00022465,4]
[365452203,1749679841277,-3455.91,0.000225,7]
[365452206,1749679841286,-213.16534259,0.00022521,7]
[365452207,1749679841297,-2806.38990393,0.00022521,7]
[365452209,1749679841307,-600.0,0.0002256,2]
[365452211,1749679841316,-254.8,0.00022574,6]
[365452213,1749679841326,-500.0,0.00022598,2]
[365452215,1749679841336,-500.0,0.00022598,3]
[365452217,1749679841346,-187.15,0.00022618,3]
[365452219,1749679841355,-561.5,0.00022618,3]
[365452221,1749679841365,-844.64040732,0.00022624,7]
[365452223,1749679841374,-160.0,0.00022624,7]
[365452225,1749679841384,-2806.38990393,0.00022624,7]
[365452227,1749679841393,-374.31,0.00022673,3]
[365452229,1749679841402,-1000.0,0.00022698,2]
[365452231,1749679841413,-988.7,0.000227,7]
[365452233,1749679841422,-163.75,0.000227,2]
[365452235,1749679841432,-163.75,0.000227,2]
[365452237,1749679841441,-163.75,0.000227,2]
[365452239,1749679841451,-163.7613617,0.000227,2]
[365452241,1749679841460,-254.8,0.00022703,6]
[365452243,1749679841469,-215.0738,0.00022705,2]
[365452246,1749679841479,-158.77989779,0.00022712,2]
[365452247,1749679841488,-158.77989778,0.00022712,2]
[365452250,1749679841498,-460.0,0.00022719,4]
[365452251,1749679841507,-644.21,0.00022719,4]
[365452253,1749679841516,-242.25595301,0.00022719,4]
[365452255,1749679841525,-460.0,0.00022719,4]
[365452257,1749679841534,-2000.0,0.00022724,2]
[365452259,1749679841543,-2806.38990393,0.00022728,7]
[365452261,1749679841553,-538.08,0.00022739,2]
[365452263,1749679841562,-856.55,0.00022739,4]
[365452265,1749679841571,-1000.0,0.00022739,4]
[365452267,1749679841580,-460.0,0.00022739,4]